bitfinex-derivatives/quotes_SOLF0:USTF0_20250630
["timestamp","ask_amount","ask_price","bid_price","bid_amount"]
[1751273791688,8.08042245,149.87,149.84,5.3376]
[1751273794092,5.337,149.86,149.84,5.3376]
[1751273794787,5.3367,149.87,149.84,5.3376]
[1751273795889,1.75546608,149.85,149.79,6.23902926]
[1751273796083,32.84,149.88,149.8,5.55640299]
[1751273796283,1.75546608,149.81,149.78,39.05902926]
[1751273796489,5.3386,149.82,149.79,5.5597461]
[1751273796787,1.75546608,149.8,149.78,32.82]
[1751273797092,1.75546608,149.8,149.79,5.5597461]
[1751273797392,1.75546608,149.8,149.79,10.8991461]
[1751273797994,8.08341999,149.82,149.79,10.8991461]
[1751273798194,8.08341999,149.82,149.8,5.5597461]
[1751273798394,8.08341999,149.82,149.81,5.5597461]
[1751273801898,5.3384,149.82,149.81,5.5597461]
[1751273802195,8.08341999,149.82,149.81,5.5597461]
[1751273805102,5.339,149.81,149.78,39.05902926]
[1751273805694,5.3391,149.8,149.78,39.05902926]
[1751273807205,5.3388,149.81,149.78,39.05902926]
[1751273807706,8.08291999,149.84,149.79,6.23902926]
[1751273808399,8.08291999,149.84,149.8,5.3391]
[1751273809203,5.3381,149.83,149.8,5.3391]
[1751273816908,8.08281999,149.84,149.8,5.3391]
[1751273817110,8.08281999,149.84,149.81,5.3387]
[1751273817515,2.74501999,149.84,149.79,11.57822926]
[1751273817814,1.7563111,149.82,149.79,13.33454036]
[1751273818213,7.0947111,149.82,149.8,6.23902926]
[1751273818710,1.7563111,149.81,149.8,6.23902926]
[1751273818904,1.7563111,149.81,149.79,6.23902926]
[1751273819205,1.7563111,149.8,149.79,6.23902926]
[1751273819505,1.7563111,149.81,149.79,6.23902926]
[1751273819708,5.3384,149.82,149.79,6.23902926]
[1751273819909,1.7563111,149.81,149.79,6.23902926]
[1751273821710,1.7563111,149.81,149.78,44.39882926]
[1751273821711,7.0951111,149.81,149.78,44.39882926]
[1751273822509,1.7563111,149.8,149.78,39.05902926]
[1751273823117,1.7563111,149.8,149.78,6.23902926]
[1751273823811,1.7563111,149.82,149.78,7.99534036]
[1751273824005,1.7563111,149.82,149.79,7.99534036]
[1751273824912,1.7563111,149.83,149.79,7.99534036]
[1751273825607,1.7563111,149.82,149.8,5.3389]
[1751273825913,5.3381,149.83,149.8,38.2589]
[1751273827513,2.74419981,149.84,149.8,32.92]
[1751273827711,2.74419981,149.82,149.8,32.92]
[1751273827909,2.74419981,149.82,149.78,39.15902926]
[1751273828411,5.3389,149.81,149.78,6.23902926]
[1751273828812,5.3389,149.81,149.78,11.57882926]
[1751273829616,5.3389,149.81,149.78,44.49882926]
[1751273829816,8.08269981,149.82,149.78,44.49882926]
[1751273830217,8.08269981,149.82,149.78,38.2598]
[1751273830416,8.08269981,149.82,149.78,44.50071917]
[1751273833317,8.08269981,149.82,149.79,5.3393]
[1751273835122,8.08269981,149.82,149.8,5.53974065]
[1751273835319,8.08269981,149.82,149.79,5.3393]
[1751273838334,8.08269981,149.82,149.79,11.58021917]
[1751273845827,1.75666383,149.81,149.79,11.58021917]
[1751273850338,7.09546383,149.81,149.79,6.24091917]
[1751273851231,1.75666383,149.81,149.79,11.58031917]
[1751273851436,5.3385,149.82,149.79,11.58031917]
[1751273851637,1.75666383,149.81,149.79,11.58031917]
[1751273858743,1.75666383,149.81,149.8,5.58789108]
[1751273862240,5.3385,149.82,149.8,5.58789108]
[1751273862451,107.45824179,149.9,149.81,10.07294755]
[1751273862636,107.45824179,149.9,149.84,8.00618601]
[1751273862637,1.75507617,149.88,149.84,8.00618601]
[1751273862939,7.09137617,149.88,149.85,10.92127559]
[1751273863142,7.09137617,149.88,149.86,5.58427559]
[1751273863331,7.09137617,149.88,149.87,5.58427559]
[1751273864041,7.09137617,149.88,149.87,8.95412648]
[1751273868150,7.09137617,149.88,149.87,5.58427559]
[1751273869552,5.3368,149.87,149.83,46.58408601]
[1751273869845,7.09187617,149.87,149.84,5.64879727]
[1751273870045,7.09187617,149.87,149.85,5.64879727]
[1751273870237,7.09187617,149.87,149.86,5.64879727]
[1751273881852,5.3368,149.87,149.86,5.64879727]
[1751273882056,7.09187617,149.87,149.86,5.64879727]
[1751273882359,1.75507617,149.87,149.81,4.5489]
[1751273882553,1.75507617,149.82,149.81,4.5489]
[1751273882753,1.75507617,149.82,149.8,33.06]
[1751273883055,1.75507617,149.81,149.78,6.25110984]
[1751273883256,128.58,149.85,149.77,6.25110984]
[1751273883257,1.75507617,149.79,149.77,6.25110984]
[1751273883553,1.75507617,149.78,149.76,37.6934]
[1751273885152,1.75507617,149.78,149.76,43.94450984]
[1751273885352,1.75507617,149.77,149.76,37.6934]
[1751273886355,1.75507617,149.77,149.76,33.06]
[1751273886550,1.75507617,149.77,149.73,6.25110984]
[1751273886750,1.75507617,149.75,149.73,39.33110984]
[1751273886955,1.75507617,149.75,149.73,33.08]
[1751273887262,1.75507617,149.75,149.73,5.3412]
[1751273888160,1.75507617,149.75,149.72,612.19290984]
[1751273888359,1.75507617,149.74,149.72,645.27290984]
[1751273889061,1.75507617,149.74,149.73,5.3416]
[1751273889257,1.75507617,149.75,149.73,5.3416]
[1751273889958,1.75507617,149.74,149.72,639.0218]
[1751273890157,33.08,149.8,149.72,39.33110984]
[1751273890360,1.75507617,149.74,149.72,33.08]
[1751273890863,33.08,149.8,149.72,38.4219]
[1751273891064,33.08,149.8,149.72,5.3419]
[1751273891065,1.75507617,149.74,149.72,5.3419]
[1751273891265,1.75507617,149.74,149.72,5.3416]
[1751273891455,1.75507617,149.75,149.72,5.3416]
[1751273891661,1.75507617,149.75,149.72,38.4216]
[1751273892160,1.75507617,149.74,149.72,38.4216]
[1751273892666,1.75507617,149.74,149.72,5.3416]
[1751273892963,1.75507617,149.74,149.73,5.3415]
[1751273893165,1.75507617,149.75,149.73,5.3415]
[1751273894663,1.75507617,149.75,149.74,5.3411]
[1751273895667,1.75507617,149.75,149.72,5.3419]
[1751273895868,1.75507617,149.74,149.73,5.62014192]
[1751273896670,1.75507617,149.74,149.72,5.3419]
[1751273896871,5.3407,149.76,149.72,5.3419]
[1751273897058,1.75507617,149.74,149.72,5.3419]
[1751273897263,1.75507617,149.74,149.71,45.2281]
[1751273897465,1.75507617,149.74,149.72,5.61864883]
[1751273897661,1.75507617,149.74,149.71,45.2281]
[1751273897971,1.75507617,149.73,149.72,5.61758801]
[1751273898264,1.75507617,149.74,149.72,10.95948801]
[1751273898469,1.75507617,149.74,149.72,5.3419]
[1751273898870,1.75507617,149.75,149.71,8.56097617]
[1751273899071,1.75507617,149.75,149.72,5.61609103]
[1751273899271,1.75507617,149.75,149.71,8.56097617]
[1751273899473,7.09667617,149.73,149.7,5.3424]
[1751273899673,1.75507617,149.72,149.71,5.61476512]
[1751273899869,1.75507617,149.72,149.7,5.3424]
[1751273901372,5.3404,149.77,149.71,7.36747416]
[1751273901575,1.75507617,149.75,149.71,1.75507617]
[1751273901874,8.08731838,149.77,149.73,5.3413]
[1751273902075,8.08731838,149.77,149.7,2.74691838]
[1751273902279,8.08731838,149.77,149.71,5.61156341]
[1751273902574,2.74691838,149.77,149.7,2.74691838]
[1751273902773,2.74691838,149.77,149.71,10.13767537]
[1751273903078,2.74691838,149.79,149.71,7.27421838]
[1751273903272,2.74691838,149.79,149.72,7.79555489]
[1751273903273,5.3398,149.78,149.72,7.79555489]
[1751273903473,5.3398,149.78,149.75,5.3406]
[1751273903676,8.08661838,149.79,149.73,33.52]
[1751273904175,8.08661838,149.79,149.75,5.3407]
[1751273904875,5.3398,149.78,149.75,5.3407]
[1751273908374,8.08651838,149.79,149.76,5.3405]
[1751273908773,5.3396,149.79,149.76,5.3405]
[1751273908978,8.08651838,149.79,149.76,5.3405]
[1751273911082,5.3398,149.78,149.75,5.3407]
[1751273911286,2.74691838,149.79,149.73,33.52]
[1751273911983,8.08671838,149.79,149.75,5.3407]
[1751273912183,2.74691838,149.79,149.75,5.3407]
[1751273912386,35.8121,149.81,149.75,5.3407]
[1751273912684,2.74691838,149.79,149.75,5.3407]
[1751273913584,5.3399,149.78,149.75,5.3407]
[1751273914287,5.3402,149.77,149.74,5.3411]
[1751273914589,2.74691838,149.79,149.73,33.52]
[1751273915582,5.3399,149.78,149.75,5.3409]
[1751273916084,2.74691838,149.79,149.75,5.3409]
[1751273916584,8.08661838,149.79,149.75,5.3409]
[1751273917393,5.3398,149.78,149.75,5.3409]
[1751273917787,2.74691838,149.79,149.73,36.26691838]
[1751273918186,2.74691838,149.79,149.73,33.52]
[1751273919694,5.3398,149.78,149.75,5.3407]
[1751273923398,5.3398,149.78,149.76,5.3405]
[1751273923796,7.0973309,149.78,149.76,5.3405]
[1751273925497,93.72704115,149.82,149.77,1.7575309]
[1751273925702,33.52,149.85,149.79,1.7575309]
[1751273925906,35.2775309,149.85,149.81,1.7575309]
[1751273926104,7.0954309,149.84,149.81,7.0959309]
[1751273926300,5.3379,149.84,149.81,7.0959309]
[1751273927204,7.0954309,149.84,149.81,5.3384]
[1751273927393,1.7575309,149.84,149.82,5.3382]
[1751273927903,2.74366945,149.86,149.82,5.3382]
[1751273928497,5.3373,149.85,149.82,5.3382]
[1751273929204,5.337,149.86,149.82,5.3382]
[1751273929403,105.75985638,149.89,149.81,36.06366945]
[1751273929802,5.3372,149.86,149.81,36.06366945]
[1751273930704,5.3367,149.87,149.81,36.06366945]
[1751273931101,5.3367,149.87,149.82,5.62249892]
[1751273931300,5.3367,149.87,149.83,8.36616837]
[1751273931500,5.3364,149.88,149.84,5.62249892]
[1751273931695,5.3364,149.88,149.85,5.62249892]
[1751273932005,5.3364,149.88,149.84,5.3375]
[1751273932200,5.3366,149.87,149.85,5.62143403]
[1751273932405,5.3366,149.87,149.84,5.3375]
[1751273932607,5.3366,149.87,149.85,5.61770775]
[1751273932806,5.3366,149.87,149.84,5.3375]
[1751273933107,5.3366,149.87,149.85,5.58534067]
[1751273933303,5.3366,149.87,149.84,5.3375]
[1751273934203,5.3366,149.87,149.83,5.3379]
[1751273934402,5.3366,149.87,149.84,5.5798069]
[1751273934700,5.3366,149.87,149.83,5.3379]
[1751273934904,5.3366,149.87,149.84,5.57943417]
[1751273935104,5.3366,149.87,149.83,5.3379]
[1751273935305,5.3366,149.87,149.84,5.55635778]
[1751273935508,5.3366,149.87,149.83,5.3379]
[1751273935709,5.3366,149.87,149.84,5.55407793]
[1751273935905,5.3366,149.87,149.83,5.3379]
[1751273936112,5.3366,149.87,149.84,5.55407793]
[1751273936312,5.3366,149.87,149.82,2.74366945]
[1751273936313,2.74366945,149.88,149.82,5.3382]
[1751273936509,2.74366945,149.88,149.83,5.5520862]
[1751273936711,2.74366945,149.88,149.82,5.3382]
[1751273936907,2.74366945,149.88,149.83,5.55250684]
[1751273937112,2.74366945,149.88,149.82,5.3382]
[1751273937312,2.74366945,149.88,149.83,5.55250684]
[1751273937512,5.3375,149.85,149.82,5.3382]
[1751273937714,5.3375,149.85,149.83,5.55113308]
[1751273937915,5.3375,149.85,149.82,5.3382]
[1751273938215,5.3375,149.85,149.81,33.32]
[1751273938216,5.3377,149.84,149.83,5.55113308]
[1751273938414,2.74366945,149.86,149.8,36.06366945]
[1751273938616,2.74366945,149.86,149.81,5.55001061]
[1751273938911,2.74366945,149.86,149.82,5.55001061]
[1751273939114,5.338,149.84,149.8,38.659]
[1751273939312,2.74366945,149.86,149.81,5.55000952]
[1751273939512,2.74366945,149.86,149.82,5.55000952]
[1751273939713,2.74366945,149.86,149.8,38.659]
[1751273939913,2.74366945,149.86,149.81,5.54918205]
[1751273940117,2.74366945,149.86,149.82,5.54918205]
[1751273940314,2.74366945,149.86,149.81,5.3387]
[1751273940514,2.74366945,149.86,149.82,5.56283002]
[1751273940715,2.74366945,149.86,149.81,5.3387]
[1751273943620,5.3379,149.84,149.81,5.3387]
[1751273944423,5.3381,149.83,149.8,41.40256945]
[1751273944622,5.3381,149.83,149.81,5.5622969]
[1751273944823,5.3381,149.83,149.8,41.40256945]
[1751273945018,5.3381,149.83,149.81,5.5622969]
[1751273945224,5.3381,149.83,149.8,41.40256945]
[1751273945420,5.3381,149.83,149.81,5.57212662]
[1751273945620,5.3381,149.83,149.8,41.40256945]
[1751273945824,5.3381,149.83,149.81,5.57212662]
[1751273946024,5.3381,149.83,149.8,41.40256945]
[1751273946217,2.74366945,149.86,149.81,5.5721022]
[1751273946422,5.3378,149.84,149.81,5.3387]
[1751273951728,5.3378,149.84,149.81,7.09462846]
[1751273954729,2.2213,149.89,149.82,1.75592846]
[1751273954928,1.75592846,149.89,149.85,1.75592846]
[1751273955931,33.32,149.9,149.84,7.09342846]
[1751273956230,1.75592846,149.88,149.84,7.09342846]
[1751273956431,33.32,149.9,149.85,1.75592846]
[1751273956626,33.32,149.9,149.86,1.75592846]
[1751273956826,1.75592846,149.89,149.86,1.75592846]
[1751273957627,5.3365,149.88,149.86,1.75592846]
[1751273957828,33.32,149.9,149.84,41.39950836]
[1751273959532,5.3366,149.88,149.84,41.39950836]
[1751273960433,5.3366,149.88,149.85,5.57976451]
[1751273960627,5.3366,149.87,149.84,41.39950836]
[1751273960829,5.3366,149.87,149.85,5.57976451]
[1751273961024,5.3363,149.88,149.85,5.3372]
[1751273963831,5.3369,149.87,149.84,38.6575]
[1751273964032,5.3369,149.87,149.85,5.55346128]
[1751273964233,5.3369,149.87,149.84,33.32]
[1751273964433,5.3369,149.87,149.85,5.55338446]
[1751273964635,5.3369,149.87,149.84,33.32]
[1751273964834,5.3369,149.87,149.85,5.55487752]
[1751273965132,5.3369,149.87,149.84,33.32]
[1751273965332,5.337,149.86,149.85,5.55482727]
[1751273970430,5.3368,149.87,149.85,5.55482727]
[1751273970735,5.3368,149.87,149.84,38.6576]
[1751273970736,5.3368,149.87,149.86,5.55482727]
[1751273979846,35.6563,149.92,149.86,7.30999217]
[1751273980044,1.7551649,149.9,149.87,5.55482727]
[1751273980349,1.7551649,149.88,149.84,41.28113332]
[1751273980542,7.0920649,149.87,149.85,5.57482206]
[1751273980744,7.0920649,149.87,149.86,5.57482206]
[1751273982450,7.0920649,149.87,149.86,8.90429406]
[1751273984253,7.0920649,149.87,149.86,3.329472]
[1751273984652,5.3375,149.85,149.82,11.54426842]
[1751273984851,7.0926649,149.85,149.83,8.92102591]
[1751273985051,7.0926649,149.85,149.84,8.92102591]
[1751273986153,7.0926649,149.85,149.84,5.57536933]
[1751273991255,5.3375,149.85,149.84,5.57536933]
[1751273991455,5.3371,149.86,149.84,5.57536933]
[1751273991657,1.7551649,149.88,149.85,5.57536933]
[1751273991960,1.7551649,149.88,149.86,5.57536933]
[1751273992156,7.0913649,149.88,149.87,5.59309078]
[1751274000569,5.3362,149.88,149.87,5.59309078]
[1751274000869,7.0913649,149.88,149.87,5.59309078]
[1751274005472,5.3376,149.85,149.83,1.7551649]
[1751274005673,5.3376,149.85,149.84,5.58860763]
[1751274006968,5.337,149.86,149.84,5.58860763]
[1751274007170,5.337,149.86,149.85,5.58860763]
[1751274009774,5.3368,149.87,149.85,7.34377253]
[1751274009972,5.3368,149.87,149.86,5.58860763]
[1751274010370,5.3368,149.87,149.86,8.93286052]
[1751274010875,35.6563,149.92,149.86,8.93286052]
[1751274011175,1.7551649,149.89,149.87,8.93286052]
[1751274011377,1.7551649,149.89,149.88,8.93286052]
[1751274011572,7.0910649,149.89,149.88,8.93286052]
[1751274012277,5.3359,149.89,149.88,8.93286052]
[1751274013378,5.3359,149.89,149.88,5.58860763]
[1751274016678,5.3357,149.9,149.88,5.58860763]
[1751274016874,5.3357,149.9,149.88,1.7551649]
[1751274017078,5.3357,149.9,149.87,1.7551649]
[1751274017381,5.3357,149.9,149.88,5.57737372]
[1751274017583,5.3357,149.9,149.89,5.57737372]
[1751274020284,7.0908649,149.9,149.89,5.57737372]
[1751274021081,7.0905649,149.91,149.89,5.57737372]
[1751274021281,7.0905649,149.91,149.87,7.0917649]
[1751274021481,7.0905649,149.91,149.88,7.33800213]
[1751274021681,7.0905649,149.91,149.89,5.58283723]
[1751274021894,7.0905649,149.91,149.88,1.7551649]
[1751274022078,7.0905649,149.91,149.89,5.57813051]
[1751274022276,7.0905649,149.91,149.88,1.7551649]
[1751274022480,5.3347,149.93,149.9,1.7551649]
[1751274022686,5.3347,149.93,149.91,1.7551649]
[1751274022984,5.3347,149.93,149.92,5.576332]
[1751274023285,5.3347,149.93,149.91,1.7551649]
[1751274023286,5.3347,149.93,149.9,1.7551649]
[1751274023488,5.3347,149.93,149.91,5.57369336]
[1751274023681,5.3347,149.93,149.9,1.7551649]
[1751274023881,5.3348,149.92,149.91,5.68143628]
[1751274024079,5.3348,149.92,149.91,12.42363408]
[1751274025085,5.3348,149.92,149.91,5.68143628]
[1751274027491,7.0899649,149.92,149.91,5.68143628]
[1751274027685,5.3353,149.91,149.88,6.9754]
[1751274027983,7.0904649,149.91,149.89,5.66084028]
[1751274028190,5.3355,149.9,149.88,6.9754]
[1751274028388,5.3355,149.9,149.89,5.66052834]
[1751274029978,5.3353,149.91,149.89,5.66052834]
[1751274030189,5.3353,149.91,149.88,6.9754]
[1751274030483,1.7551649,149.92,149.89,5.6599954]
[1751274030676,1.7551649,149.91,149.88,6.9754]
[1751274030880,1.7551649,149.91,149.89,5.6599954]
[1751274031077,1.7551649,149.91,149.88,6.9754]
[1751274031384,5.3358,149.9,149.89,5.66939897]
[1751274031589,7.0909649,149.9,149.89,5.66939897]
[1751274031778,5.3363,149.88,149.87,12.26]
[1751274031983,7.0914649,149.88,149.87,17.92961022]
[1751274032183,7.0914649,149.88,149.87,5.66961022]
[1751274032790,5.3366,149.87,149.86,30.66]
[1751274032989,7.0917649,149.87,149.86,36.33051548]
[1751274033988,7.0917649,149.87,149.86,19.65051548]
[1751274034189,1.7551649,149.87,149.86,19.65051548]
[1751274035792,5.3364,149.88,149.86,19.65051548]
[1751274035992,5.3364,149.88,149.87,5.67051548]
[1751274039396,8.07882572,149.89,149.87,5.67051548]
[1751274039694,8.07882572,149.89,149.86,19.3168]
[1751274039893,8.07882572,149.89,149.87,5.68665546]
[1751274040093,8.07882572,149.89,149.86,13.98]
[1751274040298,8.07882572,149.89,149.87,5.69122421]
[1751274040491,2.74282572,149.89,149.87,5.3364]
[1751274040789,5.3357,149.9,149.87,5.3364]
[1751274042595,5.3357,149.9,149.86,19.3168]
[1751274042796,5.3357,149.9,149.87,5.69159829]
[1751274042997,5.336,149.89,149.86,19.3168]
[1751274043196,5.336,149.89,149.87,5.69155909]
[1751274043397,5.336,149.89,149.86,19.3168]
[1751274043597,5.336,149.89,149.87,5.69179553]
[1751274043798,5.336,149.89,149.88,5.69179553]
[1751274055806,7.09088533,149.89,149.88,5.69179553]
[1751274058108,5.336,149.89,149.88,5.69179553]
[1751274058305,7.09088533,149.89,149.88,5.69179553]
[1751274061722,33.06,149.93,149.88,7.44668086]
[1751274061919,33.06,149.93,149.89,5.69179553]
[1751274062118,33.06,149.93,149.86,13.98]
[1751274062119,1.75488533,149.9,149.86,20.18596842]
[1751274062319,1.75488533,149.89,149.87,5.69178018]
[1751274062521,1.75488533,149.89,149.88,5.69178018]
[1751274062722,8.42478533,149.89,149.88,5.69178018]
[1751274063417,6.6699,149.89,149.88,5.69178018]
[1751274063616,6.6697,149.9,149.88,7.44666551]
[1751274063819,1.75488533,149.92,149.89,5.69178018]
[1751274064018,6.6687,149.92,149.9,5.69178018]
[1751274064221,1.75488533,149.91,149.86,20.18596842]
[1751274064423,1.75488533,149.89,149.87,5.69130572]
[1751274064621,8.42478533,149.89,149.88,5.69130572]
[1751274064825,6.6699,149.89,149.88,5.69130572]
[1751274066722,8.42478533,149.89,149.88,5.69130572]
[1751274068616,6.6699,149.89,149.88,5.69130572]
[1751274069125,33.06,149.93,149.88,5.69130572]
[1751274069319,33.06,149.93,149.89,5.69130572]
[1751274069624,128.44,149.94,149.9,7.448085]
[1751274069625,1.75488533,149.94,149.9,7.448085]
[1751274069823,6.6684,149.93,149.91,6.669]
[1751274070216,33.02,149.96,149.91,1.75488533]
[1751274070521,6.6674,149.95,149.92,14.11693193]
[1751274070722,6.6674,149.95,149.93,5.6937466]
[1751274071024,6.6674,149.95,149.92,8.42318533]
[1751274071222,6.6674,149.95,149.93,5.69203378]
[1751274071422,6.6674,149.95,149.94,5.69203378]
[1751274073123,6.6674,149.95,149.92,6.6683]
[1751274073326,6.6674,149.95,149.93,5.69426348]
[1751274073524,6.6674,149.95,149.92,6.6683]
[1751274073826,6.6677,149.94,149.93,5.69426348]
[1751274075823,6.6674,149.95,149.93,5.69426348]
[1751274076123,6.6674,149.95,149.92,6.6685]
[1751274076318,6.6674,149.95,149.9,2.73985624]
[1751274076319,6.6674,149.95,149.93,12.33464]
[1751274076519,6.6674,149.95,149.9,2.73985624]
[1751274076724,6.6674,149.95,149.91,5.66661131]
[1751274076926,6.6674,149.95,149.92,12.33491131]
[1751274077127,6.6674,149.95,149.92,6.6683]
[1751274077327,6.6677,149.94,149.92,6.6683]
[1751274077527,2.73985624,149.95,149.91,16.1]
[1751274077725,2.73985624,149.95,149.92,5.66570884]
[1751274078031,6.6682,149.93,149.91,16.1]
[1751274078330,6.6682,149.93,149.92,5.66508854]
[1751274084536,9.40805624,149.93,149.92,5.66508854]
[1751274084932,6.6686,149.92,149.91,30.27]
[1751274093041,9.40845624,149.92,149.91,30.27]
[1751274095240,6.6686,149.92,149.91,30.27]
[1751274095543,9.40845624,149.92,149.91,30.27]
[1751274099142,6.6686,149.92,149.91,30.27]
[1751274103140,6.6686,149.92,149.91,14.17]
[1751274104060,9.40845624,149.92,149.91,14.17]
[1751274108146,6.6686,149.92,149.91,14.17]
[1751274114146,2.73985624,149.95,149.91,14.17]
[1751274114752,6.6679,149.94,149.91,20.8388]
[1751274115152,6.6679,149.94,149.92,5.73864423]
[1751274115353,6.6679,149.94,149.91,14.17]
[1751274115656,6.6679,149.94,149.92,5.73843115]
[1751274115844,6.6681,149.93,149.91,14.17]
[1751274116048,6.6681,149.93,149.92,5.73380387]
[1751274119658,6.6681,149.93,149.92,16.87380387]
[1751274123856,6.6681,149.93,149.92,6.26970387]
[1751274124058,5.47971248,149.94,149.89,15.71]
[1751274124273,2.73985624,149.9,149.89,15.71]
[1751274124458,9.40925624,149.9,149.89,15.71]
[1751274124962,9.40925624,149.9,149.89,30.0]
[1751274134764,9.40925624,149.9,149.89,14.29]
[1751274141774,8.42482201,149.9,149.89,14.29]
[1751274149673,130.11542201,149.9,149.86,13.14]
[1751274149874,1.75542201,149.87,149.86,13.14]
[1751274150179,8.42622201,149.87,149.86,13.14]
[1751274157479,41.40622201,149.87,149.86,13.14]
[1751274157777,34.73542201,149.87,149.83,13.4]
[1751274157980,8.42752201,149.84,149.83,13.4]
[1751274164092,8.42752201,149.84,149.83,19.12585879]
[1751274164587,1.75542201,149.85,149.83,19.12585879]
[1751274164787,1.75542201,149.85,149.83,13.4]
[1751274165288,8.42722201,149.85,149.83,13.4]
[1751274168286,6.6718,149.85,149.84,5.72833564]
[1751274170394,8.42722201,149.85,149.84,5.72833564]
[1751274173193,1.75542201,149.85,149.79,21.9383154]
[1751274173495,1.75542201,149.8,149.79,15.71]
[1751274173695,1.75542201,149.8,149.79,21.4463032]
[1751274173895,1.75542201,149.8,149.79,5.7363032]
[1751274175092,8.42932201,149.8,149.79,5.7363032]
[1751274175294,8.42932201,149.8,149.74,39.2083154]
[1751274175295,1.75542201,149.8,149.74,39.2083154]
[1751274175493,1.75542201,149.77,149.75,5.73319069]
[1751274175696,1.75542201,149.77,149.76,5.73319069]
[1751274175997,6.675,149.78,149.76,5.73319069]
[1751274176197,6.675,149.78,149.77,5.73319069]
[1751274178296,2.74666985,149.81,149.77,5.73319069]
[1751274178598,2.74666985,149.81,149.78,5.73319069]
[1751274178788,6.6746,149.79,149.75,6.6757]
[1751274178995,6.6746,149.79,149.76,5.73600671]
[1751274179197,6.6746,149.79,149.77,5.73600671]
[1751274179397,6.6746,149.79,149.78,5.73600671]
[1751274183799,6.6746,149.79,149.77,6.6751]
[1751274184000,6.6741,149.8,149.74,41.95498525]
[1751274184202,6.6741,149.8,149.75,5.73195259]
[1751274184499,2.74666985,149.81,149.77,6.675]
[1751274184700,6.6742,149.8,149.74,41.95498525]
[1751274184900,6.6742,149.8,149.75,5.73143918]
[1751274185100,6.6742,149.8,149.76,5.73143918]
[1751274185300,6.6742,149.8,149.77,5.73143918]
[1751274185501,6.6742,149.8,149.78,5.73143918]
[1751274185802,6.6742,149.8,149.77,6.6749]
[1751274186003,6.6742,149.8,149.78,5.73119774]
[1751274186301,6.6742,149.8,149.77,6.6749]
[1751274186502,6.6742,149.8,149.78,5.73114928]
[1751274186804,6.6742,149.8,149.77,6.6749]
[1751274186998,6.6742,149.8,149.78,5.73114928]
[1751274187196,6.6742,149.8,149.77,6.6749]
[1751274187403,6.6742,149.8,149.78,12.40582169]
[1751274187602,6.6742,149.8,149.78,6.6746]
[1751274188603,9.42036985,149.81,149.78,6.6746]
[1751274188804,35.72666985,149.83,149.76,2.74666985]
[1751274189008,17.8621,149.9,149.79,2.74666985]
[1751274189198,17.8621,149.9,149.81,6.6731]
[1751274189199,6.6722,149.84,149.81,6.6731]
[1751274189394,32.98,149.87,149.82,5.74023879]
[1751274189595,6.6713,149.86,149.83,5.7397749]
[1751274189800,6.6713,149.86,149.83,6.6723]
[1751274189995,6.6713,149.86,149.81,2.74666985]
[1751274190199,6.6713,149.86,149.82,5.73973829]
[1751274190403,6.6713,149.86,149.83,12.41203829]
[1751274190702,6.6713,149.86,149.83,6.6723]
[1751274191701,6.6713,149.86,149.84,6.6719]
[1751274193705,32.98,149.87,149.81,8.97498525]
[1751274193706,39.6509,149.87,149.85,12.41395454]
[1751274193904,6.6709,149.87,149.85,6.6717]
[1751274195808,6.6709,149.87,149.84,6.6719]
[1751274196105,6.6709,149.87,149.85,5.74240582]
[1751274196305,6.6712,149.86,149.84,6.6719]
[1751274197105,6.671,149.87,149.84,6.6719]
[1751274197807,6.6713,149.86,149.82,32.96]
[1751274198009,2.74666985,149.88,149.83,5.74217197]
[1751274198209,2.74666985,149.88,149.84,5.74217197]
[1751274198410,6.6715,149.86,149.83,6.6725]
[1751274198609,6.6715,149.86,149.84,5.70973876]
[1751274198810,6.6717,149.85,149.82,32.96]
[1751274199107,6.6717,149.85,149.83,5.70973876]
[1751274199309,6.6722,149.84,149.81,6.2283154]
[1751274199603,6.6722,149.84,149.82,5.70976567]
[1751274199807,6.6722,149.84,149.81,6.6732]
[1751274200007,6.6722,149.84,149.82,5.70997936]
[1751274200197,6.6722,149.84,149.81,6.6732]
[1751274200397,6.6722,149.84,149.82,5.7101894]
[1751274200608,6.6722,149.84,149.82,6.6729]
[1751274201008,6.6722,149.84,149.8,6.8984]
[1751274201209,6.6727,149.83,149.81,5.69897198]